bitfinex-derivatives/quotes_SOLF0:USTF0_20250530
["timestamp","ask_amount","ask_price","bid_price","bid_amount"]
[1748645497059,0.04481302,158.52,158.48,6.35340299]
[1748645497259,0.04481302,158.52,158.49,6.3076]
[1748645497865,0.04481302,158.52,158.51,6.307]
[1748645498266,0.04481302,158.52,158.48,0.04540299]
[1748645499073,0.04481302,158.52,158.5,6.3073]
[1748645499570,0.04481302,158.52,158.48,0.04540299]
[1748645499766,0.04481302,158.52,158.51,6.307]
[1748645500572,0.04481302,158.52,158.5,6.3073]
[1748645504180,0.04481302,158.52,158.49,6.3077]
[1748645505479,0.04481302,158.52,158.5,6.3074]
[1748645506073,0.04481302,158.52,158.48,0.04540299]
[1748645507376,0.04481302,158.52,158.48,7.21286524]
[1748645507580,6.35141302,158.52,158.49,6.3077]
[1748645507779,0.04481302,158.52,158.48,7.21286524]
[1748645508179,0.04481302,158.52,158.48,13.52076524]
[1748645508578,6.3071,158.51,158.48,0.04540299]
[1748645508877,0.04481302,158.52,158.48,0.04540299]
[1748645509282,6.3078,158.49,158.48,0.04540299]
[1748645509485,0.04481302,158.52,158.48,0.04540299]
[1748645509879,6.3073,158.51,158.48,0.04540299]
[1748645510286,6.3074,158.5,158.48,0.04540299]
[1748645510885,0.04481302,158.52,158.48,0.04540299]
[1748645511482,6.3075,158.5,158.48,0.04540299]
[1748645512279,6.3078,158.49,158.48,0.04540299]
[1748645513878,6.3088,158.47,158.43,7.16746225]
[1748645514688,6.3083,158.48,158.43,7.16746225]
[1748645514893,0.04122382,158.47,158.44,0.04372246]
[1748645515086,0.04122382,158.47,158.45,6.3092]
[1748645516091,6.34982382,158.47,158.44,6.35332246]
[1748645517191,6.309,158.46,158.44,6.35332246]
[1748645517387,0.04122382,158.47,158.44,6.35332246]
[1748645517789,6.35012382,158.47,158.44,6.35332246]
[1748645518187,6.309,158.46,158.44,6.35332246]
[1748645518492,0.04122382,158.47,158.44,0.04372246]
[1748645519086,6.3094,158.45,158.44,0.04372246]
[1748645520188,0.04122382,158.47,158.44,0.04372246]
[1748645520189,6.309,158.46,158.44,0.04372246]
[1748645520390,0.04122382,158.47,158.44,0.04372246]
[1748645522697,6.3094,158.45,158.44,0.04372246]
[1748645524695,6.3094,158.45,158.38,38.76]
[1748645524696,6.3109,158.42,158.38,38.76]
[1748645524896,38.76,158.45,158.38,38.76]
[1748645525291,6.3102,158.43,158.39,6.3115]
[1748645525594,6.35506132,158.43,158.39,6.35533478]
[1748645525791,0.04486132,158.43,158.39,0.04383478]
[1748645526296,6.3112,158.41,158.39,0.04383478]
[1748645526497,0.04486132,158.43,158.39,0.04383478]
[1748645526795,6.3108,158.42,158.39,0.04383478]
[1748645527000,0.04486132,158.43,158.39,0.04383478]
[1748645527295,0.04486132,158.43,158.4,6.3113]
[1748645527598,0.04486132,158.43,158.39,7.21129703]
[1748645528096,0.04486132,158.43,158.41,6.311]
[1748645528493,0.04486132,158.43,158.39,7.21129703]
[1748645528494,6.35526132,158.43,158.39,7.21129703]
[1748645528693,6.35526132,158.43,158.39,9.23079703]
[1748645529095,6.35526132,158.43,158.4,6.3112]
[1748645529296,6.35526132,158.43,158.39,9.23079703]
[1748645529894,6.35526132,158.43,158.4,6.3113]
[1748645531398,6.3106,158.42,158.4,6.3113]
[1748645531796,6.3106,158.42,158.39,15.54229703]
[1748645532500,0.04486132,158.43,158.39,7.21129703]
[1748645533601,6.3114,158.4,158.39,0.04383478]
[1748645534689,0.04486132,158.43,158.39,0.04383478]
[1748645535296,6.3112,158.41,158.39,0.04383478]
[1748645536703,6.3114,158.4,158.39,0.04383478]
[1748645538104,0.04486132,158.43,158.35,2.042]
[1748645538406,38.56,158.42,158.35,2.042]
[1748645539006,6.313,158.36,158.33,46.8893]
[1748645539305,6.35401553,158.36,158.33,46.93027735]
[1748645539501,0.04101553,158.36,158.35,6.3134]
[1748645539699,2.1729,158.43,158.35,7.16746225]
[1748645539895,6.3102,158.43,158.38,7.16746225]
[1748645540105,38.56,158.44,158.38,7.16746225]
[1748645540502,6.3104,158.43,158.38,7.16746225]
[1748645540706,6.35683069,158.43,158.39,0.04405251]
[1748645540907,0.04643069,158.43,158.39,0.04405251]
[1748645541107,6.3108,158.42,158.39,6.35555251]
[1748645541409,6.3108,158.42,158.39,0.04405251]
[1748645542106,6.35673069,158.43,158.39,0.04405251]
[1748645542613,0.04643069,158.43,158.39,0.04405251]
[1748645544709,2.12093069,158.43,158.39,0.04405251]
[1748645544913,6.3114,158.4,158.39,0.04405251]
[1748645546512,44.8714,158.4,158.39,0.04405251]
[1748645546717,38.56,158.4,158.33,46.8895]
[1748645547813,6.3128,158.37,158.35,0.04422495]
[1748645549015,6.313,158.36,158.35,0.04422495]
[1748645557022,6.315,158.31,158.29,42.8956]
[1748645557222,6.315,158.31,158.26,7.16746225]
[1748645557430,6.315,158.31,158.28,6.3159]
[1748645558027,6.3154,158.3,158.28,0.04763906]
[1748645559025,6.3154,158.3,158.28,6.36383906]
[1748645560020,6.35561369,158.31,158.29,6.3157]
[1748645560929,6.3155,158.3,158.28,6.36363906]
[1748645561131,0.04041369,158.31,158.28,0.04763906]
[1748645561530,6.3158,158.29,158.28,0.04763906]
[1748645562526,6.3155,158.3,158.28,0.04763906]
[1748645564235,6.3158,158.29,158.28,0.04763906]
[1748645564842,6.3156,158.3,158.28,0.04763906]
[1748645565940,6.3158,158.29,158.28,0.04763906]
[1748645567735,0.04041369,158.31,158.21,40.4279]
[1748645567937,6.2989,158.31,158.22,6.3183]
[1748645568337,6.2989,158.31,158.21,40.4279]
[1748645568537,6.2989,158.31,158.21,46.7466]
[1748645568739,6.3176,158.25,158.24,0.04459659]
[1748645570029,38.40152236,158.28,158.24,0.04459659]
[1748645570242,0.04152236,158.28,158.24,0.04459659]
[1748645570635,0.04152236,158.28,158.24,2.14399659]
[1748645570941,38.36,158.32,158.26,7.16746225]
[1748645571242,6.3148,158.32,158.29,6.3154]
[1748645571440,38.36,158.36,158.29,6.3154]
[1748645571945,0.04811569,158.34,158.31,0.04586616]
[1748645572236,6.3146,158.32,158.31,0.04586616]
[1748645573629,0.04811569,158.34,158.31,0.04586616]
[1748645573843,0.04811569,158.34,158.31,6.36076616]
[1748645574034,0.04811569,158.34,158.31,0.04586616]
[1748645574240,0.04811569,158.34,158.32,6.3143]
[1748645574638,0.04811569,158.34,158.31,0.04586616]
[1748645574835,6.36211569,158.34,158.31,0.04586616]
[1748645575038,0.04811569,158.34,158.31,0.04586616]
[1748645577441,6.3146,158.32,158.31,0.04586616]
[1748645580535,6.36201569,158.34,158.31,0.04586616]
[1748645580738,0.04811569,158.34,158.31,0.04586616]
[1748645580942,0.04811569,158.34,158.31,7.21332841]
[1748645581246,0.04811569,158.34,158.33,6.3142]
[1748645582645,0.04811569,158.34,158.32,6.3144]
[1748645583052,0.04811569,158.34,158.31,7.21332841]
[1748645583053,0.04811569,158.34,158.31,0.04586616]
[1748645583844,6.3146,158.32,158.31,0.04586616]
[1748645587644,0.04811569,158.34,158.31,0.04586616]
[1748645587952,38.36,158.4,158.33,7.16746225]
[1748645588145,6.3124,158.38,158.35,6.3132]
[1748645588440,38.36,158.4,158.33,7.16746225]
[1748645588645,38.36,158.4,158.34,6.3136]
[1748645589044,0.04148066,158.39,158.35,0.04285758]
[1748645589242,6.3128,158.37,158.35,0.04285758]
[1748645590049,6.313,158.36,158.35,0.04285758]
[1748645591049,38.36,158.36,158.27,2.1568]
[1748645591443,6.3156,158.3,158.25,173.6027]
[1748645591748,2.1187,158.35,158.25,173.6027]
[1748645592051,6.36158717,158.32,158.28,6.35833592]
[1748645592742,0.04668717,158.32,158.28,0.04253592]
[1748645593949,6.3158,158.29,158.28,0.04253592]
[1748645594449,6.3155,158.3,158.28,0.04253592]
[1748645595652,6.3158,158.29,158.28,0.04253592]
[1748645597048,6.3155,158.3,158.28,0.04253592]
[1748645597249,0.04668717,158.32,158.28,0.04253592]
[1748645597844,0.04668717,158.32,158.31,6.315]
[1748645599454,6.3132,158.36,158.34,6.3136]
[1748645599749,38.14,158.39,158.3,7.16746225]
[1748645600053,38.14,158.39,158.32,6.3145]
[1748645600552,6.3136,158.35,158.34,0.04409614]
[1748645602754,0.03980421,158.37,158.29,47.30406225]
[1748645602755,0.03980421,158.37,158.29,1.9966]
[1748645603052,19.79196225,158.38,158.27,38.14]
[1748645603260,6.3158,158.29,158.27,38.14]
[1748645603653,38.14,158.34,158.25,4.1571]
[1748645603854,6.3158,158.29,158.28,0.04611367]
[1748645604859,6.3173,158.26,158.23,38.14]
[1748645605358,6.3173,158.26,158.23,44.4579]
[1748645605858,6.35737336,158.26,158.23,44.50358683]
[1748645606249,0.04007336,158.26,158.23,38.18568683]
[1748645607058,6.3176,158.25,158.23,38.18568683]
[1748645607754,0.04007336,158.26,158.23,0.04568683]
[1748645607755,6.3178,158.24,158.23,0.04568683]
[1748645610357,6.3178,158.24,158.23,8.683e-05]
[1748645612167,38.18007336,158.26,158.23,8.683e-05]
[1748645612361,0.04007336,158.26,158.23,8.683e-05]
[1748645612669,6.35717336,158.26,158.23,8.683e-05]
[1748645612861,0.04007336,158.26,158.23,8.683e-05]
[1748645613060,0.04007336,158.26,158.23,38.14008683]
[1748645613363,0.04007336,158.26,158.24,2.1771]
[1748645613962,38.14,158.31,158.24,2.1771]
[1748645614161,38.14,158.31,158.25,2.0844]
[1748645614363,6.3164,158.28,158.25,6.3171]
[1748645614665,6.3164,158.28,158.24,2.1771]
[1748645614864,38.14,158.31,158.24,2.1771]
[1748645615067,0.04509841,158.28,158.24,2.2196244]
[1748645615462,0.04509841,158.28,158.26,6.317]
[1748645615666,0.04509841,158.28,158.24,2.2196244]
[1748645615866,0.04509841,158.28,158.24,8.5372244]
[1748645616664,6.3166,158.27,158.25,6.3173]
[1748645617067,6.3166,158.27,158.24,8.5372244]
[1748645617768,6.3166,158.27,158.25,6.3173]
[1748645618265,6.3166,158.27,158.24,2.2196244]
[1748645618471,6.3171,158.26,158.24,2.2196244]
[1748645618666,6.3171,158.26,158.24,0.0425244]
[1748645618968,0.04509841,158.28,158.24,0.0425244]
[1748645619572,6.3172,158.26,158.24,0.0425244]
[1748645619873,0.04509841,158.28,158.24,0.0425244]
[1748645620174,6.3174,158.25,158.24,0.0425244]
[1748645621173,6.3172,158.26,158.24,0.0425244]
[1748645621473,38.14,158.27,158.24,0.0425244]
[1748645621770,44.4568,158.27,158.24,6.3601244]
[1748645622467,6.3168,158.27,158.24,6.3601244]
[1748645622974,6.3168,158.27,158.25,6.3174]
[1748645623472,6.317,158.26,158.24,0.0425244]
[1748645624274,6.3174,158.25,158.24,0.0425244]
[1748645624675,0.04509841,158.28,158.24,0.0425244]
[1748645624874,6.3168,158.27,158.24,0.0425244]
[1748645625071,0.04509841,158.28,158.24,0.0425244]
[1748645625976,6.3172,158.26,158.24,6.3602244]
[1748645626176,0.04509841,158.28,158.24,6.3602244]
[1748645626775,0.04509841,158.28,158.24,0.0425244]
[1748645627177,6.3169,158.27,158.24,6.3602244]
[1748645627478,0.04509841,158.28,158.24,6.3602244]
[1748645627673,6.3174,158.25,158.24,0.0425244]
[1748645628470,37.92,158.27,158.24,0.0425244]
[1748645628676,37.92,158.27,158.16,37.92]
[1748645629172,6.3192,158.21,158.17,6.3203]
[1748645629566,6.36499688,158.21,158.18,6.3201]
[1748645629976,6.3195,158.2,158.17,7.23143077]
[1748645630177,6.3195,158.2,158.17,13.55183077]
[1748645630381,0.04579688,158.21,158.17,7.23143077]
[1748645631070,6.3194,158.2,158.17,7.23143077]
[1748645631379,0.04579688,158.21,158.17,7.23143077]
[1748645632070,0.04579688,158.21,158.17,0.04537818]
[1748645632780,6.3202,158.18,158.17,0.04537818]
[1748645635183,6.3199,158.19,158.17,0.04537818]
[1748645635580,0.04579688,158.21,158.18,7.18605259]
[1748645636078,0.04579688,158.21,158.18,45.10605259]
[1748645636273,0.04579688,158.21,158.19,6.3195]
[1748645636474,0.04579688,158.21,158.18,45.10605259]
[1748645636876,6.36499688,158.21,158.18,51.42595259]
[1748645637482,6.36499688,158.21,158.19,6.3197]
[1748645637881,6.3195,158.2,158.18,45.10605259]
[1748645638276,0.04579688,158.21,158.18,37.92]
[1748645638485,6.3198,158.19,158.18,37.92]
[1748645640284,0.04579688,158.21,158.17,0.04537818]
[1748645640285,6.3202,158.18,158.17,0.04537818]
[1748645641179,0.04579688,158.21,158.11,2.1243]
[1748645641384,6.3215,158.15,158.12,37.92]
[1748645642183,6.3215,158.15,158.12,44.2841044]
[1748645642385,6.36373833,158.15,158.12,44.2841044]
[1748645643286,0.04223833,158.15,158.13,6.3221]
[1748645643481,0.04223833,158.15,158.12,37.9617044]
[1748645643685,0.04223833,158.15,158.12,45.14775699]
[1748645643889,0.04223833,158.15,158.14,6.3218]
[1748645644191,37.92,158.28,158.14,6.32]
[1748645644397,2.1071,158.27,158.18,6.3198]
[1748645644880,2.1071,158.27,158.16,37.92]
[1748645645085,0.04464102,158.23,158.2,0.04664997]
[1748645645586,6.36304102,158.23,158.2,6.36564997]
[1748645645893,0.04464102,158.23,158.2,0.04664997]
[1748645646088,0.04464102,158.23,158.22,6.3186]
[1748645648192,0.04464102,158.23,158.21,6.3187]
[1748645648591,0.04464102,158.23,158.2,0.04664997]
[1748645648787,0.04464102,158.23,158.21,6.3186]
[1748645649795,6.36284102,158.23,158.21,6.3186]
[1748645649983,0.04464102,158.23,158.2,6.36594997]
[1748645650991,6.3186,158.22,158.2,6.36594997]
[1748645651693,6.36294102,158.23,158.2,6.36594997]
[1748645652191,0.04464102,158.23,158.2,0.04664997]
[1748645652788,0.04464102,158.23,158.2,37.96664997]
[1748645653385,0.04464102,158.23,158.22,6.3186]
[1748645653690,0.04464102,158.23,158.2,37.96664997]
[1748645653892,6.3189,158.22,158.2,37.96664997]
[1748645654091,0.04464102,158.23,158.2,0.04664997]
[1748645654493,6.319,158.21,158.2,0.04664997]
[1748645657794,0.04464102,158.23,158.2,0.04664997]
[1748645658197,0.04464102,158.23,158.22,6.3186]
[1748645665008,0.04464102,158.23,158.21,2.0784]
[1748645665009,0.04464102,158.23,158.2,0.04664997]
[1748645665512,6.319,158.21,158.2,0.04664997]
[1748645667815,6.3206,158.17,158.16,37.68]
[1748645668115,50.3163,158.24,158.12,37.68]
[1748645668812,6.3216,158.15,158.12,44.0023]
[1748645669320,6.3218,158.14,158.12,37.72110544]
[1748645669518,0.04827827,158.15,158.13,7.1911411]
[1748645670713,0.04827827,158.15,158.13,13.5130411]
[1748645670916,0.04827827,158.15,158.13,7.1911411]
[1748645671216,0.04827827,158.15,158.14,6.3218]
[1748645671610,0.04827827,158.15,158.13,7.1911411]
[1748645671811,0.04827827,158.15,158.12,37.72110544]
[1748645672305,6.3218,158.14,158.12,37.72110544]
[1748645673215,6.3222,158.13,158.12,37.72110544]
[1748645674413,6.3222,158.13,158.12,0.04110544]
[1748645674714,0.04827827,158.15,158.08,44.8911411]
[1748645674715,0.04827827,158.15,158.08,37.7]
[1748645675117,6.3237,158.1,158.08,37.7]
[1748645675311,37.7,158.16,158.08,37.7]
[1748645675712,6.3233,158.11,158.1,0.04215608]
[1748645678907,0.04610503,158.14,158.04,37.7]
[1748645678908,6.3248,158.07,158.04,37.7]
[1748645679317,37.7,158.12,158.04,44.0255]
[1748645679618,6.3244,158.08,158.04,37.7]
[1748645679817,6.3244,158.08,158.05,6.3253]
[1748645680017,0.04043409,158.08,158.05,0.04067284]
[1748645681019,0.04043409,158.08,158.07,6.3245]
[1748645682212,0.04043409,158.08,158.05,0.04067284]
[1748645683017,6.3246,158.07,158.05,0.04067284]
[1748645683218,0.04043409,158.08,158.05,0.04067284]
[1748645683417,6.325,158.06,158.05,0.04067284]
[1748645683722,0.04043409,158.08,158.02,2.1015]
[1748645684210,6.3254,158.05,158.02,2.1015]
[1748645684607,0.04043409,158.08,158.02,2.14327562]
[1748645685015,6.325,158.06,158.03,6.3259]
[1748645685207,0.04043409,158.08,158.02,2.14327562]
[1748645685915,6.3247,158.07,158.02,2.14327562]
[1748645686114,0.04043409,158.08,158.02,2.14327562]
[1748645686516,6.3252,158.06,158.03,6.326]
[1748645687619,0.04043409,158.08,158.02,6.36817562]
[1748645687815,0.04043409,158.08,158.02,0.04177562]
[1748645688319,6.3259,158.04,158.02,0.04177562]
[1748645690009,0.04653199,158.05,158.02,0.04177562]
[1748645690608,6.326,158.04,158.02,0.04177562]
[1748645690810,0.04653199,158.05,158.02,0.04177562]
[1748645691922,6.37213199,158.05,158.02,0.04177562]
[1748645692123,0.04653199,158.05,158.02,0.04177562]
[1748645692423,0.04653199,158.05,158.03,6.3259]
[1748645692921,0.04653199,158.05,158.04,6.3257]
[1748645696324,6.3227,158.12,158.03,2.0057]
[1748645696619,6.3227,158.12,158.06,7.1911411]
[1748645697230,0.04124913,158.11,158.07,0.0440237]
[1748645698521,6.36414913,158.11,158.09,6.3237]
[1748645698826,0.04124913,158.11,158.07,0.0440237]
[1748645699421,6.3241,158.08,158.07,0.0440237]
[1748645704030,6.3234,158.1,158.07,0.0440237]
[1748645704426,0.04124913,158.11,158.07,0.0440237]
[1748645704624,6.324,158.09,158.07,0.0440237]
[1748645705325,0.04124913,158.11,158.07,0.0440237]
[1748645705729,6.3241,158.08,158.07,0.0440237]
[1748645706327,0.04124913,158.11,158.07,0.0440237]
[1748645707535,6.3241,158.08,158.07,0.0440237]
[1748645708731,0.04124913,158.11,158.07,0.0440237]
[1748645709745,6.3236,158.1,158.07,6.3683237]
[1748645709944,0.04124913,158.11,158.07,0.0440237]
[1748645710441,6.3241,158.08,158.07,0.0440237]
[1748645717947,6.3241,158.08,158.01,37.28]
[1748645718253,6.3249,158.07,158.01,44.4711411]
[1748645718448,6.3249,158.07,158.04,6.3257]
[1748645719048,6.37248291,158.07,158.04,6.37060766]
[1748645719250,6.325,158.06,158.04,6.37060766]
[1748645719452,0.04758291,158.07,158.04,0.04490766]
[1748645720348,0.04758291,158.07,157.98,9.2868411]
[1748645720349,6.3288,157.97,157.85,558.9263]
[1748645720549,37.28,158.04,157.92,7.1911411]
[1748645721056,37.28,158.04,157.93,2.1449]
[1748645721453,0.04068579,158.0,157.93,2.1449]
[1748645721655,0.04068579,158.0,157.94,39.3656]
[1748645722456,0.04068579,158.0,157.95,7.1911411]
[1748645722852,0.04068579,158.0,157.95,9.3435411]
[1748645723249,37.28,158.07,157.98,7.1911411]
[1748645723447,37.28,158.07,157.98,44.4711411]
[1748645723651,6.3255,158.05,158.02,6.3265]
[1748645724047,6.3256,158.05,158.02,6.3265]
[1748645724253,548.3286,158.1,158.01,7.1911411]
[1748645724450,0.04657326,158.05,158.02,0.04854218]
[1748645724649,0.04657326,158.05,158.02,37.32854218]
[1748645724858,0.04657326,158.05,158.03,6.3261]
[1748645725058,0.04657326,158.05,158.02,37.32854218]
[1748645725455,0.04657326,158.05,158.03,6.3259]
[1748645725652,0.04657326,158.05,158.02,37.32854218]
[1748645725855,2.0793,158.14,158.07,6.3245]
[1748645725856,39.3593,158.14,158.07,6.3245]
[1748645726158,39.3593,158.14,158.04,7.1911411]
[1748645726159,6.3232,158.11,158.04,7.1911411]
[1748645726360,6.3232,158.11,158.05,2.1232]
[1748645726854,0.04259246,158.1,158.06,0.04505218]
[1748645727258,6.36609246,158.1,158.06,0.04505218]
[1748645728359,6.36609246,158.1,158.07,6.3245]
[1748645729456,0.04259246,158.1,158.08,6.3241]
[1748645730159,6.36599246,158.1,158.07,6.3244]
[1748645730751,0.04259246,158.1,158.08,6.3241]
[1748645731357,0.04259246,158.1,158.06,37.32505218]
[1748645732060,6.324,158.09,158.06,43.64985218]
[1748645733161,6.36599246,158.1,158.07,6.3245]
[1748645733355,0.04259246,158.1,158.06,37.32505218]
[1748645734059,0.04259246,158.1,158.06,0.04505218]
[1748645734256,6.3238,158.09,158.06,0.04505218]
[1748645734862,6.3238,158.09,158.06,6.36995218]
[1748645735262,0.04259246,158.1,158.06,6.36995218]
[1748645735654,0.04259246,158.1,158.06,0.04505218]
[1748645735962,6.3238,158.09,158.06,0.04505218]
[1748645736265,0.04259246,158.1,158.06,0.04505218]
[1748645736659,0.04259246,158.1,158.06,6.36985218]
[1748645736964,0.04259246,158.1,158.06,0.04505218]
[1748645737163,6.3245,158.07,158.06,0.04505218]
[1748645737661,2.0343,158.09,158.0,39.426]
[1748645737859,2.0343,158.09,157.96,1.9975]
[1748645737860,2.0343,158.09,157.97,37.28]
[1748645738059,9.3483411,158.08,157.97,37.28]
[1748645738255,6.3276,158.0,157.97,43.6085]
[1748645738461,6.37569362,158.0,157.97,37.3284119]
[1748645738866,6.3281,157.98,157.97,0.0484119]
[1748645740265,0.04809362,158.0,157.97,0.0484119]
[1748645740759,6.3281,157.98,157.97,0.0484119]
[1748645742059,0.04809362,158.0,157.97,0.0484119]
[1748645742464,0.04809362,158.0,157.99,6.3277]
[1748645742661,2.1572,158.08,157.98,44.4711411]
[1748645742864,2.1572,158.08,157.99,2.0634]
[1748645743156,39.3143,158.09,157.99,2.0634]
[1748645743358,37.28,158.12,158.01,7.1911411]
[1748645743560,0.04599675,158.08,158.05,0.04140385]
[1748645743765,6.37009675,158.08,158.05,6.36650385]
[1748645745464,6.37009675,158.08,158.06,6.3249]
[1748645745668,0.04599675,158.08,158.06,6.3249]
[1748645745860,0.04599675,158.08,158.05,0.04140385]
[1748645746270,6.37039675,158.08,158.05,0.04140385]
[1748645746970,0.04599675,158.08,158.05,0.04140385]
[1748645747667,6.3249,158.06,158.05,0.04140385]
[1748645748970,6.37039675,158.08,158.05,0.04140385]
[1748645749166,6.37039675,158.08,158.05,6.36650385]
[1748645750470,0.04599675,158.08,158.05,0.04140385]
[1748645751270,6.3249,158.06,158.05,0.04140385]
[1748645759170,6.3261,158.04,158.01,6.3268]
[1748645760283,0.04705594,158.04,158.01,0.04491225]
[1748645760983,6.3265,158.02,158.01,0.04491225]
[1748645761481,0.04705594,158.04,157.97,37.06]
[1748645761682,37.10705594,158.04,157.96,2.0769]
[1748645762073,37.10705594,158.04,157.96,8.4057]
[1748645762274,37.10705594,158.04,157.94,37.06]
[1748645762483,0.04090808,158.01,157.95,6.3291]
[1748645762781,0.04090808,158.01,157.94,37.06]
[1748645762984,37.06,158.0,157.92,2.0235]
[1748645763177,6.3296,157.95,157.92,8.3539]
[1748645763777,6.3296,157.95,157.93,6.33]
[1748645763983,0.04280153,157.98,157.93,6.33]
[1748645764679,6.3294,157.95,157.92,8.3538]
[1748645764884,0.04280153,157.98,157.92,2.0235]
[1748645765086,0.04280153,157.98,157.85,37.06]
[1748645765276,0.04205606,157.93,157.91,6.3307]
[1748645765482,0.04052705,157.94,157.91,6.3307]
[1748645765978,6.37022705,157.94,157.91,6.3307]
[1748645766280,0.04052705,157.94,157.88,4.1674]
[1748645766683,6.3308,157.92,157.88,4.1674]
[1748645766880,6.3308,157.92,157.89,6.3315]
[1748645768486,6.3302,157.93,157.9,6.3312]
[1748645769285,0.04052705,157.94,157.88,4.1674]
[1748645769786,0.04052705,157.94,157.86,37.06]
[1748645770583,0.04052705,157.94,157.84,4.1498]
[1748645770785,6.332,157.89,157.86,6.3328]
[1748645771090,0.04693361,157.91,157.83,39.1966]
[1748645771292,6.3322,157.88,157.85,6.3331]
[1748645771484,0.04649856,157.89,157.83,39.1966]
[1748645771887,6.3332,157.86,157.83,45.5306]
[1748645772188,0.04649856,157.89,157.81,4.2149]
[1748645772389,0.04275486,157.87,157.81,4.2149]
[1748645772684,0.04275486,157.87,157.82,6.3344]
[1748645772685,6.3334,157.85,157.82,6.3344]
[1748645773391,6.3334,157.85,157.81,4.2149]
[1748645773392,0.04275486,157.87,157.81,4.2149]
[1748645773686,7.21250284,157.85,157.72,37.08]
[1748645773890,6.3374,157.75,157.59,6.315]
[1748645774095,37.08,157.79,157.62,49.7651]
[1748645774283,37.08,157.79,157.66,7.23116013]
[1748645774481,37.08,157.79,157.63,131.3]
[1748645774482,6.3386,157.72,157.64,37.08]
[1748645774691,9.40056013,157.78,157.64,37.08]
[1748645774892,0.04561314,157.73,157.67,2.0253]
[1748645775083,6.3394,157.7,157.67,2.0253]
[1748645775288,0.04561314,157.73,157.64,37.08]
[1748645775483,0.04764618,157.7,157.64,37.08]
[1748645775983,0.04764618,157.7,157.61,37.1]
[1748645776191,0.04237357,157.67,157.63,6.3419]
[1748645776494,0.04237357,157.67,157.61,37.1]
[1748645776691,6.341,157.66,157.61,37.1]
[1748645776892,0.04237357,157.67,157.61,37.1]
[1748645777985,37.12,157.75,157.69,6.3397]
[1748645778190,37.12,157.75,157.65,37.12]
[1748645778389,37.12,157.75,157.66,39.2056]
[1748645778698,6.3376,157.75,157.67,37.12]
[1748645778894,586.1731,157.78,157.67,37.12]
[1748645779193,6.38065202,157.74,157.71,0.04148907]
[1748645779393,36.96285202,157.74,157.71,0.04148907]
[1748645779693,36.96285202,157.74,157.66,8.4265]
[1748645779895,36.96285202,157.74,157.66,2.0856]
[1748645780097,6.3389,157.72,157.67,6.3402]
[1748645780297,36.96285202,157.74,157.67,6.3402]
[1748645780596,6.3401,157.69,157.64,6.3414]
[1748645780898,0.0474673,157.68,157.63,36.92]
[1748645782297,6.3877673,157.68,157.64,6.3414]
[1748645782999,6.3407,157.67,157.63,43.2621]
[1748645783301,0.0474673,157.68,157.63,36.92]
[1748645783501,6.3406,157.67,157.63,36.92]
[1748645783701,0.0474673,157.68,157.63,36.92]
[1748645783904,0.0474673,157.68,157.61,2.151]
[1748645784193,0.0474673,157.68,157.61,8.4936]
[1748645784401,0.0474673,157.68,157.61,2.151]
[1748645784793,6.3415,157.65,157.61,8.4939]
[1748645785099,0.0432547,157.65,157.61,2.151]
[1748645785301,0.0432547,157.65,157.62,6.3423]
[1748645785803,6.3846547,157.65,157.61,8.4937]
[1748645786003,0.0432547,157.65,157.61,2.151]
[1748645786408,0.0432547,157.65,157.64,6.3418]
[1748645786711,0.0432547,157.65,157.61,2.151]
[1748645786914,0.0432547,157.65,157.62,6.3423]
[1748645787107,0.0432547,157.65,157.61,2.151]
[1748645787515,0.0432547,157.65,157.62,6.3425]
[1748645788218,0.0432547,157.65,157.61,2.151]
[1748645788711,0.0432547,157.65,157.59,36.94]
[1748645789706,6.3424,157.63,157.6,6.3432]
[1748645790415,6.3426,157.62,157.59,43.2836]
[1748645790615,6.3426,157.62,157.59,36.94]
[1748645790817,0.0432547,157.65,157.59,36.94]
[1748645791014,0.0432547,157.65,157.58,4.2077]
[1748645791214,0.0432547,157.65,157.59,6.3436]
[1748645791615,0.0432547,157.65,157.58,4.2077]
[1748645791911,6.3424,157.63,157.6,6.3433]
[1748645792317,0.0432547,157.65,157.58,4.2077]
[1748645792509,10.85646297,157.63,157.43,12.7001]